[Event "Late-Titled-Tuesday-Blitz-January-30-2024"]
[Site "Chess.com"]
[Date "2024.01.30"]
[Round "5"]
[White "KaydenTroffChess"]
[Black "SpeedofLight0"]
[Result "1/2-1/2"]
[WhiteElo "2867"]
[BlackElo "3019"]
[TimeControl "180+1"]
[EndTime "14:58:37 PST"]
[Termination "Game drawn - insufficient material"]

1. d4 {[%clk 0:03:00.9]} 1... Nf6 {[%clk 0:02:57.9]} 2. Nf3 {[%clk 0:03:01.1]}
2... d5 {[%clk 0:02:57.9]} 3. Bf4 {[%clk 0:03:00.6]} 3... Bf5 {[%clk 0:02:50.1]}
4. e3 {[%clk 0:03:00]} 4... e6 {[%clk 0:02:50.2]} 5. Bd3 {[%clk 0:02:58.7]} 5...
Bg4 {[%clk 0:02:32.3]} 6. Nbd2 {[%clk 0:02:53.8]} 6... Be7 {[%clk 0:02:30.2]} 7.
h3 {[%clk 0:02:53.5]} 7... Bh5 {[%clk 0:02:30.1]} 8. c3 {[%clk 0:02:52.4]} 8...
O-O {[%clk 0:02:28]} 9. Qe2 {[%clk 0:02:29.8]} 9... c5 {[%clk 0:02:25.6]} 10.
dxc5 {[%clk 0:02:29.6]} 10... Nbd7 {[%clk 0:02:22.6]} 11. g4 {[%clk 0:02:16.7]}
11... Bg6 {[%clk 0:02:21]} 12. b4 {[%clk 0:02:02]} 12... Qc8 {[%clk 0:02:15.7]}
13. O-O {[%clk 0:01:53]} 13... Bxd3 {[%clk 0:02:08.2]} 14. Qxd3 {[%clk
0:01:52.7]} 14... b6 {[%clk 0:02:08.7]} 15. cxb6 {[%clk 0:01:51.8]} 15... axb6
{[%clk 0:02:07.9]} 16. a4 {[%clk 0:01:47.8]} 16... Qc6 {[%clk 0:02:05]} 17. Nd4
{[%clk 0:01:45.9]} 17... Qb7 {[%clk 0:02:04.8]} 18. Bg3 {[%clk 0:01:42.9]} 18...
Rfc8 {[%clk 0:02:01.9]} 19. Rfc1 {[%clk 0:01:41.1]} 19... Bf8 {[%clk 0:01:56.6]}
20. Rcb1 {[%clk 0:01:27.3]} 20... Ne8 {[%clk 0:01:03.7]} 21. e4 {[%clk
0:01:23.5]} 21... Bd6 {[%clk 0:01:02]} 22. exd5 {[%clk 0:01:04.2]} 22... Bxg3
{[%clk 0:01:01.2]} 23. dxe6 {[%clk 0:01:00.9]} 23... Bxf2+ {[%clk 0:00:55.8]}
24. Kxf2 {[%clk 0:01:00.4]} 24... fxe6 {[%clk 0:00:45.5]} 25. Qe4 {[%clk
0:00:59.5]} 25... Qc7 {[%clk 0:00:43.2]} 26. Qxe6+ {[%clk 0:00:51.8]} 26... Kh8
{[%clk 0:00:43.1]} 27. N2f3 {[%clk 0:00:49]} 27... Nef6 {[%clk 0:00:40.4]} 28.
Re1 {[%clk 0:00:37.5]} 28... Re8 {[%clk 0:00:35.6]} 29. Qf5 {[%clk 0:00:26.5]}
29... Qxc3 {[%clk 0:00:25.8]} 30. g5 {[%clk 0:00:25.9]} 30... Qb2+ {[%clk
0:00:11.5]} 31. Kg1 {[%clk 0:00:21.1]} 31... Rf8 {[%clk 0:00:05.4]} 32. gxf6
{[%clk 0:00:20.8]} 32... Rxf6 {[%clk 0:00:04.4]} 33. Qc2 {[%clk 0:00:20.9]}
33... Qxc2 {[%clk 0:00:02.8]} 34. Nxc2 {[%clk 0:00:20.9]} 34... Rxf3 {[%clk
0:00:03.7]} 35. a5 {[%clk 0:00:18]} 35... bxa5 {[%clk 0:00:03.9]} 36. bxa5
{[%clk 0:00:18.9]} 36... Rxh3 {[%clk 0:00:03.7]} 37. a6 {[%clk 0:00:18.7]} 37...
h6 {[%clk 0:00:04.2]} 38. a7 {[%clk 0:00:17.7]} 38... Rc3 {[%clk 0:00:04.4]} 39.
Nd4 {[%clk 0:00:18.1]} 39... Rc7 {[%clk 0:00:05.1]} 40. Nb5 {[%clk 0:00:15]}
40... Rb7 {[%clk 0:00:05.5]} 41. Ra5 {[%clk 0:00:13.2]} 41... Nc5 {[%clk
0:00:05.1]} 42. Nd6 {[%clk 0:00:10.7]} 42... Rbxa7 {[%clk 0:00:04.7]} 43. Rxc5
{[%clk 0:00:10.6]} 43... Ra4 {[%clk 0:00:04.8]} 44. Rc2 {[%clk 0:00:08.9]} 44...
Rg4+ {[%clk 0:00:05.1]} 45. Kh1 {[%clk 0:00:08.7]} 45... Ra3 {[%clk 0:00:04.5]}
46. Rg2 {[%clk 0:00:05.8]} 46... Rh3+ {[%clk 0:00:05]} 47. Kg1 {[%clk
0:00:06.1]} 47... Rhg3 {[%clk 0:00:05.6]} 48. Rxg3 {[%clk 0:00:06.4]} 48...
Rxg3+ {[%clk 0:00:06.5]} 49. Kf2 {[%clk 0:00:07.1]} 49... Rd3 {[%clk 0:00:07]}
50. Ne4 {[%clk 0:00:07.3]} 50... Kh7 {[%clk 0:00:07.1]} 51. Rc1 {[%clk 0:00:07]}
51... Rd7 {[%clk 0:00:06.3]} 52. Kf3 {[%clk 0:00:06.7]} 52... Rf7+ {[%clk
0:00:06.9]} 53. Kg4 {[%clk 0:00:07]} 53... Re7 {[%clk 0:00:07.8]} 54. Ng3 {[%clk
0:00:07.2]} 54... Re5 {[%clk 0:00:07.9]} 55. Rc6 {[%clk 0:00:06.2]} 55... Rg5+
{[%clk 0:00:08.1]} 56. Kf4 {[%clk 0:00:06.8]} 56... Ra5 {[%clk 0:00:09]} 57. Ne4
{[%clk 0:00:06.2]} 57... Ra4 {[%clk 0:00:09.2]} 58. Rc7 {[%clk 0:00:06.7]} 58...
Kg6 {[%clk 0:00:09.5]} 59. Ke5 {[%clk 0:00:07]} 59... Ra5+ {[%clk 0:00:09.3]}
60. Kf4 {[%clk 0:00:07.5]} 60... Ra4 {[%clk 0:00:07.4]} 61. Kf3 {[%clk
0:00:07.6]} 61... Kf5 {[%clk 0:00:05.3]} 62. Rc5+ {[%clk 0:00:06.6]} 62... Kg6
{[%clk 0:00:05.4]} 63. Nf2 {[%clk 0:00:06.1]} 63... Ra3+ {[%clk 0:00:04.1]} 64.
Kg4 {[%clk 0:00:06.2]} 64... Ra4+ {[%clk 0:00:05]} 65. Kg3 {[%clk 0:00:06.7]}
65... Ra3+ {[%clk 0:00:04.8]} 66. Kg4 {[%clk 0:00:06.9]} 66... Ra4+ {[%clk
0:00:05.5]} 67. Kf3 {[%clk 0:00:07.4]} 67... Ra3+ {[%clk 0:00:05.1]} 68. Kg2
{[%clk 0:00:07.6]} 68... Kh7 {[%clk 0:00:04.2]} 69. Nh3 {[%clk 0:00:07.1]} 69...
g5 {[%clk 0:00:04.5]} 70. Nf2 {[%clk 0:00:07.3]} 70... Kg6 {[%clk 0:00:04.8]}
71. Rc6+ {[%clk 0:00:07.3]} 71... Kh5 {[%clk 0:00:05.5]} 72. Ne4 {[%clk
0:00:06.9]} 72... Ra4 {[%clk 0:00:03.7]} 73. Ng3+ {[%clk 0:00:05.5]} 73... Kg4
{[%clk 0:00:04.1]} 74. Nh1 {[%clk 0:00:06.4]} 74... h5 {[%clk 0:00:03.5]} 75.
Rf6 {[%clk 0:00:06.6]} 75... h4 {[%clk 0:00:03]} 76. Nf2+ {[%clk 0:00:06.9]}
76... Kh5 {[%clk 0:00:03.7]} 77. Rf8 {[%clk 0:00:07.5]} 77... Ra3 {[%clk
0:00:03.9]} 78. Rh8+ {[%clk 0:00:07.3]} 78... Kg6 {[%clk 0:00:04.5]} 79. Rg8+
{[%clk 0:00:07.5]} 79... Kf6 {[%clk 0:00:03.7]} 80. Ne4+ {[%clk 0:00:04.9]}
80... Kf5 {[%clk 0:00:04.1]} 81. Rxg5+ {[%clk 0:00:03.8]} 81... Kf4 {[%clk
0:00:03.3]} 82. Rh5 {[%clk 0:00:02.4]} 82... h3+ {[%clk 0:00:02.5]} 83. Rxh3
{[%clk 0:00:02]} 83... Rxh3 {[%clk 0:00:03.2]} 84. Kxh3 {[%clk 0:00:01.7]}
1/2-1/2

[Event "Late-Titled-Tuesday-Blitz-January-30-2024"]
[Site "Chess.com"]
[Date "2024.01.30"]
[Round "5"]
[White "nindjaxx8"]
[Black "alexrustemov"]
[Result "0-1"]
[WhiteElo "2595"]
[BlackElo "2769"]
[TimeControl "180+1"]
[EndTime "14:58:37 PST"]
[Termination "alexrustemov won by resignation"]

1. d4 {[%clk 0:03:00.9]} 1... g6 {[%clk 0:02:58.8]} 2. c4 {[%clk 0:03:00.7]}
2... Bg7 {[%clk 0:02:59]} 3. Nc3 {[%clk 0:03:01.3]} 3... c5 {[%clk 0:02:58.7]}
4. e3 {[%clk 0:03:00.7]} 4... Nf6 {[%clk 0:02:57.4]} 5. Nf3 {[%clk 0:03:00.3]}
5... O-O {[%clk 0:02:57.4]} 6. Be2 {[%clk 0:03:00.2]} 6... cxd4 {[%clk
0:02:57.6]} 7. exd4 {[%clk 0:03:01.1]} 7... d5 {[%clk 0:02:58]} 8. O-O {[%clk
0:03:01.6]} 8... Nc6 {[%clk 0:02:56.8]} 9. Be3 {[%clk 0:03:01.2]} 9... b6 {[%clk
0:02:48.8]} 10. Rc1 {[%clk 0:02:57.6]} 10... Bb7 {[%clk 0:02:48.6]} 11. Nd2
{[%clk 0:02:55.9]} 11... Rc8 {[%clk 0:02:36.8]} 12. Bf3 {[%clk 0:02:54.2]} 12...
e6 {[%clk 0:02:16.2]} 13. cxd5 {[%clk 0:02:52.1]} 13... Nxd5 {[%clk 0:02:10.9]}
14. Nxd5 {[%clk 0:02:52]} 14... exd5 {[%clk 0:02:11.5]} 15. Nb3 {[%clk
0:02:50.7]} 15... Ba6 {[%clk 0:02:04]} 16. Be2 {[%clk 0:02:50.3]} 16... Bxe2
{[%clk 0:02:01.1]} 17. Qxe2 {[%clk 0:02:51.2]} 17... Qd7 {[%clk 0:02:00.5]} 18.
Qb5 {[%clk 0:02:45.7]} 18... Ne5 {[%clk 0:01:47.8]} 19. Qxd7 {[%clk 0:02:29.9]}
19... Nxd7 {[%clk 0:01:48.7]} 20. Rfd1 {[%clk 0:02:22.6]} 20... Rfe8 {[%clk
0:01:44.3]} 21. Kf1 {[%clk 0:02:18.5]} 21... Nf8 {[%clk 0:01:43.4]} 22. Ke2
{[%clk 0:02:15.4]} 22... Ne6 {[%clk 0:01:43.4]} 23. Kd3 {[%clk 0:02:15.3]} 23...
Kf8 {[%clk 0:01:41.1]} 24. a4 {[%clk 0:02:08.9]} 24... Ke7 {[%clk 0:01:34.6]}
25. a5 {[%clk 0:02:08.8]} 25... Kd7 {[%clk 0:01:28.8]} 26. axb6 {[%clk 0:01:37]}
26... axb6 {[%clk 0:01:29.7]} 27. Nd2 {[%clk 0:01:37.6]} 27... Bf8 {[%clk
0:01:20.6]} 28. Nf3 {[%clk 0:01:35.8]} 28... f6 {[%clk 0:01:19.1]} 29. g4 {[%clk
0:01:33.9]} 29... Rxc1 {[%clk 0:01:12.4]} 30. Rxc1 {[%clk 0:01:33.2]} 30... Ra8
{[%clk 0:01:13.1]} 31. g5 {[%clk 0:01:27.8]} 31... Be7 {[%clk 0:01:13.3]} 32. h4
{[%clk 0:01:22.1]} 32... Ra2 {[%clk 0:01:12.5]} 33. Kc3 {[%clk 0:01:15.5]} 33...
Ra4 {[%clk 0:01:06.1]} 34. b3 {[%clk 0:00:58.6]} 34... Ra2 {[%clk 0:01:04.9]}
35. Rh1 {[%clk 0:00:34.5]} 35... b5 {[%clk 0:01:00.1]} 36. h5 {[%clk 0:00:33.8]}
36... b4+ {[%clk 0:00:52.6]} 37. Kd3 {[%clk 0:00:33.6]} 37... Rb2 {[%clk
0:00:53.2]} 38. hxg6 {[%clk 0:00:33.2]} 38... hxg6 {[%clk 0:00:53.9]} 39. Rh7
{[%clk 0:00:28.1]} 39... Ke8 {[%clk 0:00:46.9]} 40. Nh4 {[%clk 0:00:22.8]} 40...
Rxb3+ {[%clk 0:00:45.4]} 41. Kc2 {[%clk 0:00:22.5]} 41... Rc3+ {[%clk
0:00:44.8]} 42. Kb2 {[%clk 0:00:23.1]} 42... fxg5 {[%clk 0:00:42]} 43. Nxg6
{[%clk 0:00:22.5]} 43... Bf6 {[%clk 0:00:42.3]} 44. Rb7 {[%clk 0:00:11]} 44...
Rc4 {[%clk 0:00:41.3]} 45. Kb3 {[%clk 0:00:09.9]} 45... Nxd4+ {[%clk 0:00:37.8]}
46. Bxd4 {[%clk 0:00:07.4]} 46... Bxd4 {[%clk 0:00:37]} 47. Re7+ {[%clk
0:00:04.5]} 47... Kd8 {[%clk 0:00:37]} 48. Rh7 {[%clk 0:00:04.7]} 48... Bc3
{[%clk 0:00:23.3]} 49. Nf8 {[%clk 0:00:03.8]} 49... Re4 {[%clk 0:00:20.9]} 50.
Ng6 {[%clk 0:00:01.6]} 50... d4 {[%clk 0:00:19.9]} 51. Rh8+ {[%clk 0:00:01.3]}
51... Kd7 {[%clk 0:00:18.5]} 52. Nf8+ {[%clk 0:00:02.1]} 52... Kd6 {[%clk
0:00:17.2]} 53. Nh7 {[%clk 0:00:02.3]} 53... d3 {[%clk 0:00:15.1]} 54. Rd8+
{[%clk 0:00:02.2]} 54... Ke5 {[%clk 0:00:13.1]} 55. Nxg5 {[%clk 0:00:01.7]}
55... Rg4 {[%clk 0:00:10.1]} 56. Nf3+ {[%clk 0:00:01]} 56... Ke4 {[%clk
0:00:09.4]} 57. Nh2 {[%clk 0:00:01.6]} 57... Rf4 {[%clk 0:00:08.5]} 58. Nf1
{[%clk 0:00:01.9]} 58... Rxf2 {[%clk 0:00:07.8]} 59. Ng3+ {[%clk 0:00:02.6]}
59... Ke3 {[%clk 0:00:07.7]} 60. Re8+ {[%clk 0:00:03.2]} 60... Kd4 {[%clk
0:00:07.3]} 61. Rd8+ {[%clk 0:00:02.8]} 61... Ke3 {[%clk 0:00:07.8]} 62. Re8+
{[%clk 0:00:03.2]} 62... Kf3 {[%clk 0:00:08.5]} 63. Ne4 {[%clk 0:00:02.5]} 63...
Rb2+ {[%clk 0:00:08.6]} 64. Kc4 {[%clk 0:00:02.6]} 64... d2 {[%clk 0:00:09.3]}
65. Nxd2+ {[%clk 0:00:01.8]} 65... Rxd2 {[%clk 0:00:08.1]} 66. Rf8+ {[%clk
0:00:02.4]} 66... Ke2 {[%clk 0:00:08.4]} 67. Re8+ {[%clk 0:00:02.8]} 67... Kd1
{[%clk 0:00:08.9]} 68. Kb3 {[%clk 0:00:03.1]} 68... Rb2+ {[%clk 0:00:08.7]} 69.
Kc4 {[%clk 0:00:03.7]} 69... Kc2 {[%clk 0:00:08.9]} 70. Rg8 {[%clk 0:00:03.5]}
70... Kb1 {[%clk 0:00:07.5]} 71. Rg1+ {[%clk 0:00:03.5]} 71... Ka2 {[%clk
0:00:07.9]} 72. Rg8 {[%clk 0:00:03.2]} 72... Rd2 {[%clk 0:00:08.3]} 73. Ra8+
{[%clk 0:00:02.9]} 73... Kb2 {[%clk 0:00:08.9]} 74. Rb8 {[%clk 0:00:03.4]} 74...
Rd4+ {[%clk 0:00:09.4]} 75. Kc5 {[%clk 0:00:03.6]} 75... Rh4 {[%clk 0:00:10.3]}
76. Rg8 {[%clk 0:00:03.2]} 76... b3 {[%clk 0:00:10.4]} 77. Rg2+ {[%clk
0:00:03.8]} 77... Ka3 {[%clk 0:00:10.3]} 78. Rg3 {[%clk 0:00:04.4]} 78... Bb4+
{[%clk 0:00:09.1]} 79. Kb5 {[%clk 0:00:04.7]} 79... Ka2 {[%clk 0:00:08.5]} 80.
Rg2+ {[%clk 0:00:02.1]} 80... b2 {[%clk 0:00:08.8]} 81. Rg4 {[%clk 0:00:02]} 0-1

[Event "Late-Titled-Tuesday-Blitz-January-30-2024"]
[Site "Chess.com"]
[Date "2024.01.30"]
[Round "5"]
[White "Mazetovic"]
[Black "jcibarra"]
[Result "1/2-1/2"]
[WhiteElo "2617"]
[BlackElo "2873"]
[TimeControl "180+1"]
[EndTime "14:58:42 PST"]
[Termination "Game drawn by stalemate"]

1. e4 {[%clk 0:03:00.9]} 1... c5 {[%clk 0:02:59]} 2. Nf3 {[%clk 0:03:00.1]} 2...
Nc6 {[%clk 0:02:57.5]} 3. Bb5 {[%clk 0:02:59.7]} 3... e6 {[%clk 0:02:57.6]} 4.
Bxc6 {[%clk 0:02:56.7]} 4... bxc6 {[%clk 0:02:57.5]} 5. d3 {[%clk 0:02:56.1]}
5... Qc7 {[%clk 0:02:55.9]} 6. Qe2 {[%clk 0:02:55.3]} 6... e5 {[%clk 0:02:54]}
7. O-O {[%clk 0:02:50.9]} 7... Ne7 {[%clk 0:02:53.5]} 8. Nh4 {[%clk 0:02:45.9]}
8... Ng6 {[%clk 0:02:50.6]} 9. Nf5 {[%clk 0:02:22.5]} 9... f6 {[%clk 0:02:45.5]}
10. Nd2 {[%clk 0:02:09.9]} 10... Nf4 {[%clk 0:02:41.2]} 11. Qf3 {[%clk 0:02:03]}
11... g6 {[%clk 0:02:41.7]} 12. Ne3 {[%clk 0:01:54.1]} 12... Be7 {[%clk
0:02:36.3]} 13. g3 {[%clk 0:01:48.3]} 13... Ne6 {[%clk 0:02:34.3]} 14. h4 {[%clk
0:01:27.2]} 14... h5 {[%clk 0:02:30.3]} 15. Ndc4 {[%clk 0:01:24.3]} 15... d6
{[%clk 0:02:25.6]} 16. b3 {[%clk 0:01:24.4]} 16... Nd4 {[%clk 0:02:23.5]} 17.
Qd1 {[%clk 0:01:14.7]} 17... Bh3 {[%clk 0:02:21.1]} 18. Re1 {[%clk 0:01:13.9]}
18... Qd7 {[%clk 0:01:42.7]} 19. c3 {[%clk 0:01:12]} 19... Nb5 {[%clk
0:01:39.9]} 20. Bd2 {[%clk 0:01:03]} 20... d5 {[%clk 0:01:40]} 21. Na5 {[%clk
0:00:58.6]} 21... d4 {[%clk 0:01:35.6]} 22. cxd4 {[%clk 0:00:43.9]} 22... cxd4
{[%clk 0:01:35.4]} 23. Nec4 {[%clk 0:00:43.9]} 23... g5 {[%clk 0:01:21.4]} 24.
Kh2 {[%clk 0:00:28.8]} 24... Bg4 {[%clk 0:01:16.4]} 25. f3 {[%clk 0:00:27.4]}
25... Be6 {[%clk 0:01:16.8]} 26. Rg1 {[%clk 0:00:24.3]} 26... gxh4 {[%clk
0:01:13.3]} 27. gxh4 {[%clk 0:00:24.2]} 27... O-O-O {[%clk 0:00:54.1]} 28. Rc1
{[%clk 0:00:23.7]} 28... Nc3 {[%clk 0:00:45.4]} 29. Qe1 {[%clk 0:00:16.8]} 29...
Rhg8 {[%clk 0:00:34.3]} 30. Bxc3 {[%clk 0:00:13.6]} 30... Rxg1 {[%clk
0:00:34.9]} 31. Qxg1 {[%clk 0:00:13.3]} 31... dxc3 {[%clk 0:00:34.1]} 32. Rxc3
{[%clk 0:00:12.8]} 32... Bb4 {[%clk 0:00:32.3]} 33. Rc2 {[%clk 0:00:12.7]} 33...
Qxd3 {[%clk 0:00:23.4]} 34. Qf2 {[%clk 0:00:07.3]} 34... Bc5 {[%clk 0:00:19.4]}
35. Qe2 {[%clk 0:00:06.9]} 35... Qxe2+ {[%clk 0:00:15.3]} 36. Rxe2 {[%clk
0:00:06.7]} 36... Kc7 {[%clk 0:00:16.2]} 37. Ne3 {[%clk 0:00:04.1]} 37... Rd3
{[%clk 0:00:13.9]} 38. Nac4 {[%clk 0:00:04]} 38... Bxc4 {[%clk 0:00:13]} 39.
Nxc4 {[%clk 0:00:03.6]} 39... Rxf3 {[%clk 0:00:13.7]} 40. Kg2 {[%clk 0:00:03.7]}
40... Rf4 {[%clk 0:00:13.4]} 41. Kg3 {[%clk 0:00:04.2]} 41... Rg4+ {[%clk
0:00:12.6]} 42. Kh3 {[%clk 0:00:04.6]} 42... Bd4 {[%clk 0:00:12.4]} 43. Nd2
{[%clk 0:00:04.7]} 43... Rf4 {[%clk 0:00:11.8]} 44. Kg3 {[%clk 0:00:04.4]} 44...
a5 {[%clk 0:00:08.3]} 45. Nf3 {[%clk 0:00:04.3]} 45... Bc5 {[%clk 0:00:07.7]}
46. Re1 {[%clk 0:00:03.2]} 46... Kb6 {[%clk 0:00:07.3]} 47. Re2 {[%clk
0:00:02.2]} 47... Bb4 {[%clk 0:00:07.4]} 48. Kg2 {[%clk 0:00:01.2]} 48... Kb5
{[%clk 0:00:06.3]} 49. Kg3 {[%clk 0:00:01.8]} 49... a4 {[%clk 0:00:06.3]} 50.
Kg2 {[%clk 0:00:01.6]} 50... a3 {[%clk 0:00:05.2]} 51. Kg3 {[%clk 0:00:01.5]}
51... c5 {[%clk 0:00:05.8]} 52. Kg2 {[%clk 0:00:02.3]} 52... c4 {[%clk
0:00:06.5]} 53. bxc4+ {[%clk 0:00:02.6]} 53... Kxc4 {[%clk 0:00:07.3]} 54. Re3
{[%clk 0:00:03.3]} 54... Bc5 {[%clk 0:00:06.9]} 55. Rb3 {[%clk 0:00:03.3]} 55...
Rxe4 {[%clk 0:00:06.2]} 56. Nd2+ {[%clk 0:00:03.6]} 56... Kd5 {[%clk 0:00:05.7]}
57. Nxe4 {[%clk 0:00:04]} 57... Kxe4 {[%clk 0:00:06.6]} 58. Rc3 {[%clk
0:00:03.6]} 58... Kd5 {[%clk 0:00:05.8]} 59. Rd3+ {[%clk 0:00:03.5]} 59... Ke4
{[%clk 0:00:03.8]} 60. Rd8 {[%clk 0:00:03.1]} 60... f5 {[%clk 0:00:04]} 61. Rh8
{[%clk 0:00:03.1]} 61... f4 {[%clk 0:00:04.2]} 62. Rxh5 {[%clk 0:00:03.8]} 62...
Bd4 {[%clk 0:00:04.4]} 63. Kf1 {[%clk 0:00:03.8]} 63... f3 {[%clk 0:00:04.5]}
64. Rh8 {[%clk 0:00:04.3]} 64... Kf4 {[%clk 0:00:04.5]} 65. h5 {[%clk
0:00:04.7]} 65... e4 {[%clk 0:00:04.6]} 66. Rf8+ {[%clk 0:00:05.3]} 66... Kg5
{[%clk 0:00:04.2]} 67. h6 {[%clk 0:00:04.3]} 67... Kg4 {[%clk 0:00:02.2]} 68.
Rg8+ {[%clk 0:00:04.3]} 68... Kf4 {[%clk 0:00:02.2]} 69. h7 {[%clk 0:00:04.9]}
69... e3 {[%clk 0:00:02.7]} 70. h8=Q {[%clk 0:00:05.2]} 70... e2+ {[%clk
0:00:02.3]} 71. Ke1 {[%clk 0:00:04.5]} 71... Bxh8 {[%clk 0:00:02.6]} 72. Rxh8
{[%clk 0:00:04.4]} 72... Ke3 {[%clk 0:00:03.4]} 73. Re8+ {[%clk 0:00:04.4]}
73... Kd3 {[%clk 0:00:04.1]} 74. Kf2 {[%clk 0:00:04.2]} 74... Kc2 {[%clk
0:00:04.8]} 75. Rb8 {[%clk 0:00:03.5]} 75... Kd1 {[%clk 0:00:04.4]} 76. Re8
{[%clk 0:00:03.7]} 76... Kd2 {[%clk 0:00:03.7]} 77. Re3 {[%clk 0:00:04.3]} 77...
Kd1 {[%clk 0:00:03.7]} 78. Kxf3 {[%clk 0:00:04.4]} 78... e1=Q {[%clk 0:00:04]}
79. Rxe1+ {[%clk 0:00:04.6]} 79... Kxe1 {[%clk 0:00:04.9]} 80. Ke3 {[%clk
0:00:05.2]} 80... Kf1 {[%clk 0:00:05]} 81. Kd2 {[%clk 0:00:05.5]} 81... Kf2
{[%clk 0:00:05.7]} 82. Kc3 {[%clk 0:00:06.4]} 82... Ke3 {[%clk 0:00:06.3]} 83.
Kb3 {[%clk 0:00:07.3]} 83... Kd4 {[%clk 0:00:07.1]} 84. Kxa3 {[%clk 0:00:08.2]}
84... Kc5 {[%clk 0:00:07.6]} 85. Ka4 {[%clk 0:00:09.1]} 85... Kb6 {[%clk
0:00:08.4]} 86. Kb4 {[%clk 0:00:09.2]} 86... Ka7 {[%clk 0:00:09.3]} 87. a4
{[%clk 0:00:09.7]} 87... Ka8 {[%clk 0:00:10.2]} 88. a5 {[%clk 0:00:10.6]} 88...
Ka7 {[%clk 0:00:11.1]} 89. Kb5 {[%clk 0:00:10.8]} 89... Ka8 {[%clk 0:00:12]} 90.
Kb6 {[%clk 0:00:11.4]} 90... Kb8 {[%clk 0:00:12.4]} 91. a6 {[%clk 0:00:12.3]}
91... Ka8 {[%clk 0:00:13.3]} 92. a7 {[%clk 0:00:10.6]} 1/2-1/2